fUSD/lending_fUSD_20240414
["ID","MTS","AMOUNT","RATE_DAILY","PERIOD"]
[322567188,1713070243614,-150.0,0.00033762,2]
[322567189,1713070243624,-150.0,0.00033788,2]
[322567190,1713070243633,-151.91,0.0003379,2]
[322567191,1713070243643,-150.0,0.00033798,2]
[322567192,1713070243652,-482.0,0.000338,19]
[322567193,1713070243661,-1717.887578,0.000338,2]
[322567194,1713070243671,-150.0,0.000338,3]
[322567195,1713070243681,-150.0,0.00033804,2]
[322567196,1713070243690,-150.0,0.00033804,2]
[322567197,1713070243700,-150.0,0.00033804,2]
[322567198,1713070243710,-150.0,0.00033804,2]
[322567199,1713070243719,-150.0,0.00033805,2]
[322567200,1713070243729,-150.0,0.00033808,2]
[322567201,1713070243739,-150.0,0.00033837,2]
[322567202,1713070243749,-150.0,0.00033843,2]
[322567203,1713070243760,-150.0,0.00033845,2]
[322567204,1713070243769,-150.0,0.00033854,2]
[322567205,1713070243779,-150.0,0.00033863,2]
[322567206,1713070243788,-150.0,0.00033873,2]
[322567207,1713070243797,-70512.8075769,0.00033877,2]
[322567208,1713070243806,-7616.5953465,0.00033877,2]
[322567209,1713070243816,-1307.5230265,0.00033877,2]
[322567210,1713070243826,-2773.5267026,0.00033877,2]
[322567211,1713070243836,-150.0,0.00033879,30]
[322567212,1713070243846,-150.0,0.00033879,30]
[322567213,1713070243855,-280.15,0.00033879,2]
[322567214,1713070243865,-280.15,0.00033879,2]
[322567215,1713070243875,-280.15,0.00033879,2]
[322567216,1713070243884,-280.15,0.00033879,2]
[322567217,1713070243894,-280.15,0.00033879,2]
[322567218,1713070243903,-280.15,0.00033879,2]
[322567219,1713070243913,-280.15,0.00033879,2]
[322567220,1713070243922,-280.15,0.00033879,2]
[322567221,1713070243931,-280.15,0.00033879,2]
[322567222,1713070243940,-280.15,0.00033879,2]
[322567223,1713070243949,-640374.75415679,0.0003388,2]
[322567248,1713070245838,-241.34824938,0.00022,2]
[322567249,1713070245847,-133.38728062,0.00022,2]
[322567250,1713070245859,-107.96096876,0.00022,2]
[322567251,1713070245869,-241.34824938,0.00022,2]
[322567252,1713070245878,-785.07583218,0.0003388,2]
[322567253,1713070245889,-694.60068968,0.0003388,2]
[322567254,1713070245901,-253.78249476,0.0003388,2]
[322567255,1713070245914,-300.83305796,0.0003388,2]
[322567256,1713070245926,-412.6939596,0.0003388,2]
[322567257,1713070245937,-756.89688147,0.0003388,2]
[322567258,1713070247891,-1088.14673787,0.00020651,2]
[322567259,1713070247901,-918.8228419,0.00021148,2]
[322567260,1713070247913,-169.32389597,0.00021148,2]
[322567261,1713070247923,-840.93643885,0.00021305,2]
[322567262,1713070247935,-1958.3349458,0.00021305,2]
[322567263,1713070247944,-241.34824938,0.00022,2]
[322567264,1713070247954,-241.34824938,0.00022,2]
[322567265,1713070247963,-241.34824938,0.00022,2]
[322567266,1713070247972,-241.34824938,0.00022,2]
[322567267,1713070247982,-241.34824938,0.00022,2]
[322567268,1713070247991,-241.34824938,0.00022,2]
[322567269,1713070248001,-241.34824938,0.00022,2]
[322567270,1713070248010,-241.34824938,0.00022,2]
[322567271,1713070248019,-241.34824938,0.00022,2]
[322567272,1713070248027,-241.34824938,0.00022,2]
[322567273,1713070248037,-241.34824938,0.00022,2]
[322567274,1713070248046,-241.34824938,0.00022,2]
[322567275,1713070248055,-241.34824938,0.00022,2]
[322567276,1713070248065,-241.34824938,0.00022,2]
[322567277,1713070248074,-241.34824938,0.00022,2]
[322567278,1713070248083,-241.34824938,0.00022,2]
[322567279,1713070248093,-241.34824938,0.00022,2]
[322567280,1713070248103,-9176.83411298,0.00023102,2]
[322567281,1713070248112,-1685.04663826,0.00031594,2]
[322567282,1713070248122,-448.83156958,0.00031956,2]
[322567283,1713070248132,-150.0,0.00033209,2]
[322567284,1713070248141,-150.0,0.00033617,2]
[322567285,1713070248152,-150.0,0.00033656,2]
[322567286,1713070248162,-150.0,0.00033669,2]
[322567287,1713070248171,-150.0,0.0003367,2]
[322567288,1713070248181,-150.0,0.00033686,2]
[322567289,1713070248190,-150.0,0.00033706,2]
[322567290,1713070248199,-150.0,0.00033724,2]
[322567291,1713070248209,-150.0,0.00033764,2]
[322567292,1713070248218,-150.0,0.00033765,2]
[322567293,1713070248228,-150.0,0.00033774,2]
[322567294,1713070248237,-150.0,0.00033803,2]
[322567295,1713070248247,-150.0,0.00033813,2]
[322567296,1713070248257,-150.0,0.00033831,2]
[322567297,1713070248267,-150.0,0.00033858,2]
[322567298,1713070248276,-148925.67579339,0.0003388,2]
[322567299,1713070248289,-35831.58213867,0.0003388,2]
[322567300,1713070248310,-150.0,0.00033699,2]
[322567301,1713070248322,-150.0,0.00033727,2]
[322567302,1713070248331,-408999.76496863,0.0003388,2]
[322567303,1713070248342,-1000.0,0.000339,2]
[322567304,1713070248351,-757.2794,0.000339,2]
[322567305,1713070248361,-150.0,0.00033999,30]
[322567306,1713070248370,-2000.0,0.00034,3]
[322567307,1713070248380,-40298.07677866,0.00034,15]
[322567308,1713070248505,-241.34824938,0.00022,2]
[322567309,1713070248517,-150.0,0.00033749,2]
[322567310,1713070248527,-150.0,0.00033822,2]
[322567311,1713070248739,-150.0,0.00033874,2]
[322567312,1713070248766,-150.0,0.00033874,2]
[322567313,1713070248775,-4079.78133975,0.00034,15]
[322567314,1713070248787,-20553.10319991,0.00034,15]
[322567315,1713070250031,-241.34824938,0.00022,2]
[322567316,1713070250042,-126.01001818,0.00022,2]
[322567317,1713070250064,-115.3382312,0.00022,2]
[322567318,1713070250074,-241.34824938,0.00022,2]
[322567319,1713070250083,-241.34824938,0.00022,2]
[322567320,1713070250093,-241.34824938,0.00022,2]
[322567321,1713070250103,-241.34824938,0.00022,2]
[322567322,1713070250113,-241.34824938,0.00022,2]
[322567323,1713070250123,-241.34824938,0.00022,2]
[322567324,1713070250137,-241.34824938,0.00022,2]
[322567325,1713070250146,-241.34824938,0.00022,2]
[322567326,1713070250156,-241.34824938,0.00022,2]
[322567327,1713070250165,-241.34824938,0.00022,2]
[322567328,1713070250175,-412.11,0.00029441,2]
[322567329,1713070250185,-150.0,0.00033208,2]
[322567330,1713070250194,-150.0,0.00033321,2]
[322567331,1713070250204,-150.0,0.00033501,2]
[322567332,1713070250214,-47.20008912,0.00033583,2]
[322567333,1713070250227,-102.79991088,0.00033583,2]
[322567334,1713070250237,-150.0,0.00033604,2]
[322567335,1713070250247,-150.0,0.00033612,2]
[322567336,1713070250256,-150.0,0.00033616,2]
[322567337,1713070250267,-150.0,0.0003362,2]
[322567338,1713070250277,-150.0,0.00033628,2]
[322567339,1713070250287,-150.0,0.0003363,2]
[322567340,1713070250296,-150.0,0.0003363,2]
[322567341,1713070250306,-150.0,0.00033636,2]
[322567342,1713070250317,-4.74258202,0.00033637,2]
[322567343,1713070250338,-241.34824938,0.00022,2]
[322567344,1713070250348,-29.07903607,0.00033637,2]
[322567345,1713070250361,-116.17838191,0.00033637,2]
[322567346,1713070250371,-150.0,0.00033648,2]
[322567347,1713070250380,-150.0,0.00033648,2]
[322567348,1713070250390,-150.0,0.00033649,2]
[322567349,1713070250399,-150.0,0.0003365,2]
[322567350,1713070250410,-150.0,0.00033657,2]
[322567351,1713070250420,-150.0,0.00033664,2]
[322567352,1713070250430,-150.0,0.00033668,2]
[322567353,1713070250440,-150.0,0.0003367,2]
[322567354,1713070250449,-150.0,0.00033671,2]
[322567355,1713070250459,-150.0,0.00033672,2]
[322567356,1713070250469,-150.0,0.00033672,2]
[322567357,1713070250479,-150.0,0.00033686,2]
[322567358,1713070250490,-150.0,0.00033688,2]
[322567359,1713070250500,-150.0,0.00033688,2]
[322567360,1713070250510,-150.0,0.0003369,2]
[322567361,1713070250521,-150.0,0.00033695,2]
[322567362,1713070250531,-150.0,0.00033699,2]
[322567363,1713070250540,-150.0,0.000337,2]
[322567364,1713070250550,-150.0,0.00033704,2]
[322567365,1713070250560,-150.0,0.00033704,2]
[322567366,1713070250570,-150.0,0.00033706,2]
[322567367,1713070250580,-150.0,0.00033708,2]
[322567368,1713070250591,-150.0,0.00033722,2]
[322567369,1713070250601,-150.0,0.00033734,2]
[322567370,1713070250611,-150.0,0.00033738,2]
[322567371,1713070250621,-150.0,0.00033741,2]
[322567372,1713070250631,-150.0,0.00033745,2]
[322567373,1713070250641,-150.0,0.00033749,2]
[322567374,1713070250651,-150.0,0.0003375,2]
[322567375,1713070250661,-150.0,0.00033752,2]
[322567376,1713070250671,-150.0,0.00033752,2]
[322567377,1713070250681,-150.0,0.00033765,2]
[322567378,1713070250690,-150.0,0.00033779,2]
[322567379,1713070250701,-150.0,0.0003378,2]
[322567380,1713070250711,-150.0,0.00033785,2]
[322567381,1713070250721,-150.0,0.00033786,2]
[322567382,1713070250731,-150.0,0.00033787,2]
[322567383,1713070250740,-150.0,0.0003379,2]
[322567384,1713070250750,-150.0,0.00033797,2]
[322567385,1713070250759,-150.0,0.00033798,2]
[322567386,1713070250770,-150.0,0.00033801,2]
[322567387,1713070250780,-150.0,0.00033806,2]
[322567388,1713070250789,-150.0,0.00033808,2]
[322567389,1713070250801,-150.0,0.00033809,2]
[322567390,1713070250811,-150.0,0.00033811,2]
[322567391,1713070250821,-150.0,0.00033813,2]
[322567392,1713070250831,-150.0,0.00033815,2]
[322567393,1713070250840,-150.0,0.00033816,2]
[322567394,1713070250851,-150.0,0.00033821,2]
[322567395,1713070250860,-150.0,0.00033823,2]
[322567396,1713070250869,-150.0,0.00033823,2]
[322567397,1713070250879,-150.0,0.0003383,2]
[322567398,1713070250888,-150.0,0.00033831,2]
[322567399,1713070250897,-150.0,0.00033835,2]
[322567400,1713070250907,-150.0,0.00033839,2]
[322567401,1713070250917,-150.0,0.00033842,2]
[322567402,1713070250927,-150.0,0.00033846,2]
[322567403,1713070250937,-150.0,0.00033851,2]
[322567404,1713070250946,-150.0,0.00033856,2]
[322567405,1713070250966,-150.0,0.00033856,2]
[322567406,1713070250979,-150.0,0.00033859,2]
[322567407,1713070250989,-150.0,0.00033862,2]
[322567408,1713070250998,-150.0,0.00033862,2]
[322567409,1713070251008,-150.0,0.0003387,2]
[322567410,1713070251018,-150.0,0.00033872,2]
[322567411,1713070251028,-150.0,0.00033878,2]
[322567412,1713070251038,-117983.82161813,0.00034,15]
[322567414,1713070460006,500.0,0.0002,2]
[322567415,1713071095581,5232.2584462,0.0003,30]
[322567498,1713071431905,-321.89751,0.00020409,2]
[322567525,1713071437629,-705.281867,0.00020409,2]
[322567526,1713071437832,-265.21185882,0.00020409,2]
[322567527,1713071437842,-158.5467267,0.00020411,2]
[322567528,1713071437851,-2044.88991365,0.00020511,2]
[322567529,1713071437861,-150.0,0.00020799,2]
[322567530,1713071437871,-150.0,0.00020799,2]
[322567531,1713071437881,-3001.0,0.000209,2]
[322567532,1713071437890,-4144.87033004,0.000209,2]
[322567533,1713071437900,-10181.4519,0.000209,2]
[322567534,1713071437909,-1000.0,0.000209,2]
[322567535,1713071437920,-1000.0,0.000209,3]
[322567536,1713071437929,-5775.52188996,0.000209,2]
[322567537,1713071437938,-5270.10172783,0.000209,2]
[322567538,1713071437969,-67092.20112065,0.000209,2]
[322567539,1713071437979,-4666.53930004,0.000209,2]
[322567540,1713071437998,-6226.68409481,0.000209,2]
[322567541,1713071438007,-967.96641222,0.000209,2]
[322567542,1713071438017,-774.55039841,0.000209,2]
[322567543,1713071438026,-154.4885591,0.000209,2]
[322567544,1713071438035,-155.0,0.00020998,2]
[322567545,1713071438044,-156.02833852,0.00020999,2]
[322567546,1713071438055,-10525101.44909584,0.00021,2]
[322567547,1713071438066,-13141276.2216504,0.00021,2]
[322567548,1713071438082,-32192.70848074,0.00021,2]
[322567743,1713071439923,-158.67,0.0002099,2]
[322567744,1713071439933,-158.67,0.0002099,2]
[322567746,1713071439945,-1352.7358456,0.00021,2]
[322567780,1713071440321,-158.67,0.0002099,2]
[322567782,1713071440330,-152.5477816,0.00021,2]
[322567784,1713071440342,-599.32521379,0.00021,2]
[322567787,1713071440354,-282.77746678,0.00021,2]
[322567789,1713071440366,-304.91,0.00021,2]
[322567792,1713071440384,-1036.73511253,0.00021,2]
[322567828,1713071442999,-699.25390004,0.000209,2]
[322567829,1713071443008,-158.67,0.0002099,2]
[322567830,1713071443017,-1890537.11750255,0.00021,2]
[322567831,1713071443050,-25144.60000105,0.00021,2]
[322567832,1713071443061,-21004.35824231,0.00021,2]
[322567833,1713071443073,-720.4877836,0.00021,2]
[322567834,1713071443086,-3224.02176027,0.00021,2]
[322567835,1713071443125,-414.66000001,0.00021,2]
[322567836,1713071443137,-9918.48375552,0.00021,2]
[322567840,1713071443174,-606.18895579,0.00021,2]
[322567841,1713071443186,-779.44213518,0.00021,2]
[322567842,1713071443197,-19901.2192986,0.00021,2]
[322567843,1713071443209,-12834.5816944,0.00021,2]
[322567869,1713071445873,-257198.59680437,0.00021,2]
[322567870,1713071446033,-1067.68812882,0.00021,2]
[322567875,1713071447160,-3263.05456277,0.00021,2]
[322567881,1713071468966,389.34737881,0.00019948,2]
[322567887,1713071521788,546.12064838,0.000168,2]
[322567907,1713072631812,-301.12,0.00020033,2]
[322567908,1713072631821,-933.26584747,0.000208,2]
[322567909,1713072631952,-3221.0,0.000208,2]
[322567910,1713072631981,-2784.48495281,0.000208,2]
[322567911,1713072632014,-171.45499972,0.000208,2]
[322567912,1713072632023,-155.0,0.00020898,2]
[322567913,1713072632033,-551.01939592,0.00020899,2]
[322567914,1713072632043,-530.0,0.00020899,2]
[322567915,1713072632052,-873.1124827,0.000209,2]
[322567916,1713072632078,-787.28508878,0.000209,2]
[322567917,1713072632092,-530.0,0.000209,2]
[322567918,1713072632105,-2896.21549398,0.000209,2]
[322567919,1713072632117,-1986.2537636,0.000209,2]
[322567920,1713072632131,-326.94545494,0.000209,2]
[322567924,1713072632164,-2139.68270175,0.000209,2]
[322568011,1713072637790,-19325.86847375,0.000209,2]
[322568016,1713072637850,-5950.14032621,0.000209,2]
[322568018,1713072637862,-12237.09312621,0.000209,2]
[322568038,1713072638132,-275.68,0.000209,2]
[322568045,1713072638198,-67173.87438808,0.000209,2]
[322568047,1713072638211,-10251.28063633,0.000209,2]
[322568049,1713072638221,-3370.09327652,0.000209,2]
[322568050,1713072638231,-231.43276754,0.000209,2]
[322568051,1713072638241,-156.02833852,0.00020998,2]
[322568052,1713072638252,-17049.86093728,0.00020998,2]
[322568054,1713072638261,-10427024.90709003,0.00021,2]
[322568056,1713072638274,-7474990.97038439,0.00021,2]
[322568058,1713072638285,-1664698.84992469,0.00021,2]
[322568060,1713072638294,-1430.30975011,0.00021,2]
[322568063,1713072638304,-610.58536035,0.00021,2]
[322568065,1713072638314,-1534399.0200718,0.00021,2]
[322568067,1713072638323,-942.84,0.00021,2]
[322568070,1713072638335,-680.12,0.00021,2]
[322568073,1713072638344,-1559.0,0.00021,2]
[322568076,1713072638354,-1644.79632,0.00021,2]
[322568079,1713072638364,-908.17,0.00021041,2]
[322568082,1713072638373,-908.17,0.00021041,2]
[322568085,1713072638382,-908.17,0.00021041,2]
[322568088,1713072638392,-908.17,0.00021041,2]
[322568090,1713072638402,-4013.22567488,0.00021147,2]
[322568092,1713072638412,-908.17,0.000212,2]
[322568094,1713072638422,-412.35,0.000212,2]
[322568096,1713072638431,-499.99,0.000212,2]
[322568098,1713072638441,-272.24,0.000212,2]
[322568100,1713072638451,-908.17,0.000212,2]
[322568102,1713072638460,-412.35,0.000212,2]
[322568104,1713072638471,-557.17,0.000212,2]
[322568145,1713072638826,-908.17,0.000212,2]
[322568148,1713072638845,-1816.34,0.000212,2]
[322568150,1713072638855,-908.17,0.00021241,2]
[322568152,1713072638865,-412.35,0.00021241,2]
[322568154,1713072638874,-150.0,0.000213,2]
[322568156,1713072638883,-412.35,0.000213,2]
[322568158,1713072638892,-150.0,0.000213,2]
[322568160,1713072638902,-908.17,0.000213,2]
[322568162,1713072638911,-150.0,0.000213,2]
[322568164,1713072638921,-412.35,0.000213,2]
[322568166,1713072638930,-908.17,0.000213,2]
[322568168,1713072638940,-300.06,0.000213,2]
[322568170,1713072638949,-908.17,0.000213,2]
[322568172,1713072638959,-412.35,0.000213,2]
[322568174,1713072638968,-908.17,0.000213,2]
[322568175,1713072638977,-412.35,0.000213,2]
[322568178,1713072638987,-3198.0,0.000214,2]
[322568179,1713072638999,-1252.0,0.000214,2]
[322568182,1713072639008,-152.76,0.00021918,2]
[322568184,1713072639018,-250.0,0.00021918,2]
[322568186,1713072639028,-784.24043551,0.00022,2]
[322568188,1713072639038,-183.07,0.00022,2]
[322568189,1713072639048,-150.0,0.00022,2]
[322568191,1713072639058,-150.0,0.00022,2]
[322568193,1713072639067,-150.0,0.00022,2]
[322568196,1713072639078,-412.35,0.00022,2]
[322568198,1713072639088,-908.17,0.00022,2]
[322568200,1713072639102,-162.47,0.00022,2]
[322568202,1713072639111,-150.0,0.00022,2]
[322568204,1713072639120,-412.35,0.00022,2]
[322568206,1713072639131,-150.0,0.00022,2]
[322568207,1713072639140,-150.0,0.00022,2]
[322568210,1713072639150,-908.17,0.00022,2]
[322568212,1713072639159,-162.47,0.00022,2]
[322568213,1713072639171,-642.68817415,0.00022,2]
[322568215,1713072639181,-642.68817415,0.00022,2]
[322568217,1713072639191,-642.68817415,0.00022,2]
[322568220,1713072639201,-642.68817415,0.00022,2]
[322568221,1713072639212,-642.68817415,0.00022,2]
[322568224,1713072639221,-642.68817415,0.00022,2]
[322568226,1713072639230,-642.68817415,0.00022,2]
[322568228,1713072639240,-642.68817415,0.00022,2]
[322568230,1713072639249,-642.68817415,0.00022,2]
[322568231,1713072639259,-642.68817415,0.00022,2]
[322568234,1713072639268,-642.68817415,0.00022,2]
[322568236,1713072639277,-642.68817415,0.00022,2]
[322568237,1713072639287,-642.68817415,0.00022,2]
[322568238,1713072639296,-642.68817415,0.00022,2]
[322568239,1713072639305,-642.68817415,0.00022,2]
[322568240,1713072639313,-642.68817415,0.00022,2]
[322568241,1713072639322,-642.68817415,0.00022,2]
[322568242,1713072639331,-642.68817415,0.00022,2]
[322568243,1713072639340,-642.68817415,0.00022,2]
[322568244,1713072639350,-642.68817415,0.00022,2]
[322568245,1713072639361,-642.68817415,0.00022,2]
[322568247,1713072639371,-642.68817415,0.00022,2]
[322568249,1713072639380,-642.68817415,0.00022,2]
[322568251,1713072639390,-642.68817415,0.00022,2]
[322568253,1713072639400,-642.68817415,0.00022,2]
[322568255,1713072639409,-642.68817415,0.00022,2]
[322568257,1713072639418,-642.68817415,0.00022,2]
[322568259,1713072639427,-642.68817415,0.00022,2]
[322568261,1713072639437,-642.68817415,0.00022,2]
[322568263,1713072639447,-642.68817415,0.00022,2]
[322568265,1713072639459,-642.68817415,0.00022,2]
[322568267,1713072639469,-642.68817415,0.00022,2]
[322568269,1713072639478,-642.68817415,0.00022,2]
[322568272,1713072639510,-642.68817415,0.00022,2]
[322568274,1713072639534,-642.68817415,0.00022,2]
[322568275,1713072639543,-642.68817415,0.00022,2]
[322568277,1713072639553,-642.68817415,0.00022,2]
[322568279,1713072639563,-642.68817415,0.00022,2]
[322568281,1713072639572,-642.68817415,0.00022,2]
[322568283,1713072639582,-642.68817415,0.00022,2]
[322568286,1713072639592,-642.68817415,0.00022,2]
[322568287,1713072639602,-642.68817415,0.00022,2]
[322568290,1713072639611,-642.68817415,0.00022,2]
[322568291,1713072639621,-642.68817415,0.00022,2]
[322568293,1713072639630,-642.68817415,0.00022,2]
[322568296,1713072639640,-642.68817415,0.00022,2]
[322568298,1713072639651,-642.68817415,0.00022,2]
[322568300,1713072639661,-642.68817415,0.00022,2]
[322568302,1713072639670,-642.68817415,0.00022,2]
[322568304,1713072639680,-642.68817415,0.00022,2]
[322568306,1713072639690,-642.68817415,0.00022,2]
[322568308,1713072639699,-642.68817415,0.00022,2]
[322568310,1713072639709,-642.68817415,0.00022,2]
[322568313,1713072639719,-642.68817415,0.00022,2]
[322568316,1713072639729,-642.68817415,0.00022,2]
[322568319,1713072639738,-642.68817415,0.00022,2]
[322568322,1713072639747,-642.68817415,0.00022,2]
[322568324,1713072639757,-642.68817415,0.00022,2]
[322568325,1713072639766,-642.68817415,0.00022,2]
[322568326,1713072639776,-642.68817415,0.00022,2]
[322568327,1713072639786,-642.68817415,0.00022,2]
[322568328,1713072639795,-642.68817415,0.00022,2]
[322568329,1713072639805,-642.68817415,0.00022,2]
[322568330,1713072639815,-642.68817415,0.00022,2]
[322568331,1713072639825,-642.68817415,0.00022,2]
[322568332,1713072639834,-642.68817415,0.00022,2]
[322568333,1713072639844,-642.68817415,0.00022,2]
[322568334,1713072639854,-642.68817415,0.00022,2]
[322568335,1713072639864,-642.68817415,0.00022,2]
[322568336,1713072639873,-642.68817415,0.00022,2]
[322568337,1713072639883,-642.68817415,0.00022,2]
[322568338,1713072639893,-642.68817415,0.00022,2]
[322568340,1713072639902,-642.68817415,0.00022,2]
[322568342,1713072639913,-642.68817415,0.00022,2]
[322568343,1713072639924,-642.68817415,0.00022,2]
[322568344,1713072639935,-642.68817415,0.00022,2]
[322568345,1713072639946,-642.68817415,0.00022,2]
[322568346,1713072639957,-642.68817415,0.00022,2]
[322568347,1713072639967,-642.68817415,0.00022,2]
[322568348,1713072639977,-642.68817415,0.00022,2]
[322568349,1713072639987,-642.68817415,0.00022,2]
[322568350,1713072639997,-642.68817415,0.00022,2]
[322568351,1713072640008,-642.68817415,0.00022,2]
[322568352,1713072640018,-642.68817415,0.00022,2]
[322568353,1713072640029,-642.68817415,0.00022,2]
[322568354,1713072640039,-642.68817415,0.00022,2]
[322568355,1713072640049,-642.68817415,0.00022,2]
[322568356,1713072640060,-642.68817415,0.00022,2]
[322568357,1713072640069,-642.68817415,0.00022,2]
[322568358,1713072640081,-642.68817415,0.00022,2]
[322568359,1713072640100,-642.68817415,0.00022,2]
[322568360,1713072640115,-642.68817415,0.00022,2]
[322568361,1713072640125,-642.68817415,0.00022,2]
[322568362,1713072640135,-642.68817415,0.00022,2]
[322568363,1713072640147,-642.68817415,0.00022,2]
[322568364,1713072640156,-642.68817415,0.00022,2]
[322568365,1713072640166,-642.68817415,0.00022,2]
[322568366,1713072640176,-642.68817415,0.00022,2]
[322568367,1713072640186,-642.68817415,0.00022,2]
[322568368,1713072640196,-642.68817415,0.00022,2]
[322568369,1713072640206,-1000.0,0.00022014,2]
[322568370,1713072640215,-191.73,0.00022168,2]
[322568371,1713072640225,-254.37,0.00022188,2]
[322568372,1713072640234,-521.03,0.000222,2]
[322568373,1713072640243,-150.0,0.000222,2]
[322568374,1713072640252,-152.05,0.000222,2]
[322568375,1713072640262,-265.86,0.000222,2]
[322568376,1713072640271,-794.43,0.000222,2]
[322568377,1713072640281,-150.0,0.000222,2]
[322568378,1713072640291,-166.66,0.000222,2]
[322568379,1713072640300,-908.17,0.000222,2]
[322568380,1713072640310,-412.35,0.000222,2]
[322568381,1713072640320,-155.55,0.000222,2]
[322568382,1713072640329,-250.0,0.00022215,2]
[322568383,1713072640339,-301.12,0.00022297,2]
[322568385,1713072640348,-1298.44,0.00022755,2]
[322568386,1713072640358,-7832.8,0.00022829,2]
[322568387,1713072640368,-550.0,0.00023,3]
[322568388,1713072640378,-155.54,0.00023261,2]
[322568389,1713072640388,-1000.0,0.00023288,2]
[322568390,1713072640398,-1000.0,0.00023288,2]
[322568392,1713072640408,-1000.0,0.00023288,2]
[322568394,1713072640418,-1000.0,0.00023288,2]
[322568396,1713072640427,-1000.0,0.00023288,2]
[322568397,1713072640437,-1000.0,0.00023288,2]
[322568398,1713072640446,-765.0,0.00023288,2]
[322568399,1713072640457,-150.0,0.00023356,2]
[322568400,1713072640467,-150.0,0.00023356,2]
[322568401,1713072640477,-150.0,0.00023356,2]
[322568402,1713072640487,-4741.23088761,0.000235,2]
[322568403,1713072640497,-253.729,0.00023594,2]
[322568404,1713072640507,-263.566,0.00023594,2]
[322568405,1713072640516,-163.114,0.0002382,2]
[322568406,1713072640526,-163.114,0.0002383,2]
[322568407,1713072640536,-163.114,0.00023839,2]
[322568408,1713072640546,-163.114,0.00023849,2]
[322568409,1713072640556,-163.114,0.00023859,2]
[322568410,1713072640567,-163.114,0.00023868,2]
[322568411,1713072640577,-180.64,0.00023909,2]
[322568412,1713072640587,-10000.0,0.00024214,2]
[322568413,1713072640596,-155.54,0.00024221,2]
[322568414,1713072640606,-301.12,0.00024561,2]
[322568415,1713072640616,-615.403,0.00024648,2]
[322568416,1713072640625,-1948.0,0.00024648,2]
[322568417,1713072640635,-436.0,0.00024648,2]
[322568418,1713072640644,-807.0,0.00024648,2]
[322568419,1713072640654,-292.138,0.00024648,2]
[322568420,1713072640663,-293.532,0.00024648,2]
[322568421,1713072640673,-3043.0,0.00024648,2]
[322568422,1713072640682,-411.009,0.00024648,2]
[322568423,1713072640692,-1130.0,0.00024648,2]
[322568424,1713072640702,-1472.0,0.00024648,2]
[322568425,1713072640712,-253.584,0.00024648,2]
[322568426,1713072640722,-1646.464,0.00024648,2]
[322568427,1713072640731,-203.751,0.00024648,2]
[322568428,1713072640742,-2440.0,0.00024648,2]
[322568429,1713072640751,-443.186,0.00024648,2]
[322568430,1713072640761,-226.0,0.00024648,2]
[322568431,1713072640771,-399.52,0.00024648,2]
[322568432,1713072640781,-968.0,0.00024648,2]
[322568433,1713072640791,-5719.0,0.00024648,2]
[322568434,1713072640801,-2291.0,0.00024648,2]
[322568435,1713072640811,-1391.0,0.00024648,2]
[322568436,1713072640821,-461.0,0.00024648,2]